[Event "Late-Titled-Tuesday-Blitz-July-09-2024"]
[Site "Chess.com"]
[Date "2024.07.09"]
[Round "8"]
[White "Navyblue1"]
[Black "PNEPaul"]
[Result "1-0"]
[WhiteElo "2128"]
[BlackElo "1895"]
[TimeControl "180+1"]
[EndTime "15:28:19 PDT"]
[Termination "Navyblue1 won on time"]

1. d4 {[%clk 0:02:51.9]} 1... a6 {[%clk 0:02:58.9]} 2. c4 {[%clk 0:02:50.9]}
2... d6 {[%clk 0:02:58.9]} 3. Nc3 {[%clk 0:02:46.6]} 3... g6 {[%clk 0:02:59.1]}
4. e4 {[%clk 0:02:47]} 4... h6 {[%clk 0:02:59.3]} 5. f4 {[%clk 0:02:45.7]} 5...
Bg7 {[%clk 0:02:59.4]} 6. Nf3 {[%clk 0:02:45.9]} 6... Nd7 {[%clk 0:02:59.5]} 7.
Be3 {[%clk 0:02:46.4]} 7... e6 {[%clk 0:02:59.3]} 8. Bd3 {[%clk 0:02:46.9]} 8...
Ne7 {[%clk 0:02:59.1]} 9. O-O {[%clk 0:02:46.3]} 9... O-O {[%clk 0:02:58.9]} 10.
Re1 {[%clk 0:02:45]} 10... Nf6 {[%clk 0:02:57.9]} 11. h3 {[%clk 0:02:39.5]}
11... Nh5 {[%clk 0:02:50]} 12. Qd2 {[%clk 0:02:35.3]} 12... Kh7 {[%clk
0:02:48.7]} 13. Qf2 {[%clk 0:02:34.8]} 13... Ng8 {[%clk 0:02:42.4]} 14. Rad1
{[%clk 0:02:23.8]} 14... f5 {[%clk 0:02:37]} 15. e5 {[%clk 0:02:21.2]} 15...
dxe5 {[%clk 0:02:13.5]} 16. dxe5 {[%clk 0:02:22.1]} 16... Qe8 {[%clk 0:02:07.2]}
17. Nd4 {[%clk 0:02:10.5]} 17... c5 {[%clk 0:01:58.4]} 18. Nde2 {[%clk
0:02:04.4]} 18... b6 {[%clk 0:01:47]} 19. g4 {[%clk 0:01:54]} 19... Nxf4 {[%clk
0:01:46.7]} 20. Nxf4 {[%clk 0:01:46.5]} 20... Bxe5 {[%clk 0:01:45.3]} 21. gxf5
{[%clk 0:01:42.2]} 21... exf5 {[%clk 0:01:26.6]} 22. Ng2 {[%clk 0:01:35.5]}
22... Qe7 {[%clk 0:01:02.9]} 23. Nd5 {[%clk 0:01:24.2]} 23... Qg7 {[%clk
0:01:02.6]} 24. Bf4 {[%clk 0:01:15.4]} 24... Bxb2 {[%clk 0:00:52.2]} 25. h4
{[%clk 0:01:15]} 25... Bd4 {[%clk 0:00:51.8]} 26. Be3 {[%clk 0:01:15.2]} 26...
Bf6 {[%clk 0:00:50.7]} 27. Nxf6+ {[%clk 0:01:04.2]} 27... Qxf6 {[%clk
0:00:48.2]} 28. Nf4 {[%clk 0:01:03.5]} 28... g5 {[%clk 0:00:40.8]} 29. hxg5
{[%clk 0:01:02.2]} 29... hxg5 {[%clk 0:00:40.1]} 30. Qh2+ {[%clk 0:00:57.6]}
30... Qh6 {[%clk 0:00:33.4]} 31. Qxh6+ {[%clk 0:00:54.8]} 31... Kxh6 {[%clk
0:00:32.9]} 32. Nd5 {[%clk 0:00:54.3]} 32... f4 {[%clk 0:00:30.2]} 33. Nxb6
{[%clk 0:00:25.1]} 33... Bg4 {[%clk 0:00:25.2]} 34. Rc1 {[%clk 0:00:19.7]} 34...
fxe3 {[%clk 0:00:21.3]} 35. Nxa8 {[%clk 0:00:20.1]} 35... Rxa8 {[%clk
0:00:20.4]} 36. Rxe3 {[%clk 0:00:19.3]} 36... Rd8 {[%clk 0:00:17.3]} 37. Rg3
{[%clk 0:00:18.9]} 37... Bc8 {[%clk 0:00:12.5]} 38. Bf1 {[%clk 0:00:18.6]} 38...
Nf6 {[%clk 0:00:11.1]} 39. Rc2 {[%clk 0:00:18.7]} 39... Ne4 {[%clk 0:00:10.9]}
40. Rh2+ {[%clk 0:00:18.4]} 40... Kg6 {[%clk 0:00:10.3]} 41. Re3 {[%clk
0:00:18.2]} 41... Bf5 {[%clk 0:00:07.5]} 42. Bd3 {[%clk 0:00:17.3]} 42... Nd6
{[%clk 0:00:05.4]} 43. Bxf5+ {[%clk 0:00:17.1]} 43... Nxf5 {[%clk 0:00:05.4]}
44. Re6+ {[%clk 0:00:16.6]} 44... Kf7 {[%clk 0:00:04.7]} 45. Re5 {[%clk
0:00:16.4]} 45... Rd1+ {[%clk 0:00:03.7]} 46. Kg2 {[%clk 0:00:15.7]} 46... Rd2+
{[%clk 0:00:03.8]} 47. Kh3 {[%clk 0:00:14.9]} 47... Rxh2+ {[%clk 0:00:03]} 48.
Kxh2 {[%clk 0:00:14.8]} 48... Kf6 {[%clk 0:00:02.7]} 49. Rxc5 {[%clk 0:00:14.7]}
49... Ne3 {[%clk 0:00:01.4]} 50. Rc6+ {[%clk 0:00:14.1]} 50... Ke5 {[%clk
0:00:01.3]} 51. Rxa6 {[%clk 0:00:13.6]} 51... Nxc4 {[%clk 0:00:01.3]} 52. Kg3
{[%clk 0:00:12.9]} 1-0

[Event "Late-Titled-Tuesday-Blitz-July-09-2024"]
[Site "Chess.com"]
[Date "2024.07.09"]
[Round "8"]
[White "Zurability"]
[Black "WindWhistler11"]
[Result "1-0"]
[WhiteElo "2659"]
[BlackElo "2479"]
[TimeControl "180+1"]
[EndTime "15:28:20 PDT"]
[Termination "Zurability won on time"]

1. e4 {[%clk 0:02:53.5]} 1... e6 {[%clk 0:02:46.1]} 2. Qe2 {[%clk 0:02:45.9]}
2... b6 {[%clk 0:02:44.9]} 3. b3 {[%clk 0:02:46]} 3... Ba6 {[%clk 0:02:45]} 4.
Bb2 {[%clk 0:02:45.1]} 4... Bxe2 {[%clk 0:02:44.2]} 5. Bxe2 {[%clk 0:02:06]}
5... Nf6 {[%clk 0:01:44.7]} 6. d3 {[%clk 0:02:04.5]} 6... d5 {[%clk 0:01:45.3]}
7. e5 {[%clk 0:01:56.9]} 7... Nfd7 {[%clk 0:01:44.8]} 8. Nf3 {[%clk 0:01:57.8]}
8... Be7 {[%clk 0:01:44.7]} 9. O-O {[%clk 0:01:57.5]} 9... O-O {[%clk
0:01:45.4]} 10. Re1 {[%clk 0:01:50.1]} 10... c5 {[%clk 0:01:46]} 11. Bf1 {[%clk
0:01:50.6]} 11... Nc6 {[%clk 0:01:46.2]} 12. a3 {[%clk 0:01:50.2]} 12... Qb8
{[%clk 0:01:44.9]} 13. Nbd2 {[%clk 0:01:50.1]} 13... Bd8 {[%clk 0:01:45.2]} 14.
c4 {[%clk 0:01:31.7]} 14... d4 {[%clk 0:01:41.9]} 15. b4 {[%clk 0:01:31.5]}
15... Bc7 {[%clk 0:01:41.5]} 16. g3 {[%clk 0:01:28.4]} 16... Ncxe5 {[%clk
0:01:39.5]} 17. Nxe5 {[%clk 0:01:28.5]} 17... Nxe5 {[%clk 0:01:38.1]} 18. f4
{[%clk 0:01:29.4]} 18... Ng4 {[%clk 0:01:36.2]} 19. Bg2 {[%clk 0:01:30.1]} 19...
Ne3 {[%clk 0:01:36.7]} 20. Bxa8 {[%clk 0:01:29.1]} 20... Qxa8 {[%clk 0:01:36.7]}
21. Re2 {[%clk 0:01:30]} 21... e5 {[%clk 0:01:35.5]} 22. fxe5 {[%clk 0:01:24.8]}
22... Bxe5 {[%clk 0:01:35]} 23. Rae1 {[%clk 0:01:25]} 23... f5 {[%clk
0:01:33.4]} 24. Rf2 {[%clk 0:01:23.8]} 24... f4 {[%clk 0:01:32.9]} 25. Ne4
{[%clk 0:01:21.4]} 25... fxg3 {[%clk 0:01:29.5]} 26. hxg3 {[%clk 0:01:15.6]}
26... Rxf2 {[%clk 0:01:27.1]} 27. Kxf2 {[%clk 0:01:16.5]} 27... Qf8+ {[%clk
0:01:25.3]} 28. Ke2 {[%clk 0:01:16.9]} 28... Qf5 {[%clk 0:01:22.8]} 29. Kd2
{[%clk 0:01:16.8]} 29... Qh3 {[%clk 0:01:21.6]} 30. bxc5 {[%clk 0:01:14.7]}
30... bxc5 {[%clk 0:01:17.6]} 31. Nxc5 {[%clk 0:01:15.1]} 31... Bxg3 {[%clk
0:01:16.5]} 32. Re2 {[%clk 0:01:14.7]} 32... Bf4 {[%clk 0:01:13.5]} 33. Bxd4
{[%clk 0:01:08.5]} 33... Nf5+ {[%clk 0:01:11.6]} 34. Kc3 {[%clk 0:01:08.7]}
34... Nxd4 {[%clk 0:01:09]} 35. Kxd4 {[%clk 0:01:08.9]} 35... Qg4 {[%clk
0:01:05.8]} 36. Re4 {[%clk 0:01:03.5]} 36... g5 {[%clk 0:01:03.2]} 37. Ne6
{[%clk 0:01:01.2]} 37... Qg1+ {[%clk 0:01:00.8]} 38. Kd5 {[%clk 0:01:01.1]}
38... Bb8 {[%clk 0:00:53.4]} 39. c5 {[%clk 0:00:58.1]} 39... Qb1 {[%clk
0:00:52.6]} 40. d4 {[%clk 0:00:37.9]} 40... a6 {[%clk 0:00:34.7]} 41. Nd8 {[%clk
0:00:20.5]} 41... h5 {[%clk 0:00:26.2]} 42. Re8+ {[%clk 0:00:19.2]} 42... Kh7
{[%clk 0:00:24.6]} 43. Ne6 {[%clk 0:00:12.9]} 43... Qa2+ {[%clk 0:00:14.5]} 44.
Kc6 {[%clk 0:00:11.3]} 44... Qb3 {[%clk 0:00:06.2]} 45. Kd7 {[%clk 0:00:04]}
45... Qd5+ {[%clk 0:00:05.1]} 46. Ke7 {[%clk 0:00:04.4]} 46... g4 {[%clk
0:00:02.8]} 47. Rxb8 {[%clk 0:00:04.2]} 47... Kh6 {[%clk 0:00:03.2]} 48. Rh8+
{[%clk 0:00:04.2]} 48... Kg6 {[%clk 0:00:03.7]} 49. Nf4+ {[%clk 0:00:04.3]}
49... Kg5 {[%clk 0:00:03.5]} 50. Nxd5 {[%clk 0:00:04.6]} 1-0

[Event "Late-Titled-Tuesday-Blitz-July-09-2024"]
[Site "Chess.com"]
[Date "2024.07.09"]
[Round "8"]
[White "Bauman_Guy"]
[Black "Goryachkina"]
[Result "1/2-1/2"]
[WhiteElo "2914"]
[BlackElo "2720"]
[TimeControl "180+1"]
[EndTime "15:28:22 PDT"]
[Termination "Game drawn by repetition"]

1. e4 {[%clk 0:03:00.9]} 1... c5 {[%clk 0:02:59.8]} 2. Nf3 {[%clk 0:03:01]} 2...
Nc6 {[%clk 0:02:59.8]} 3. d4 {[%clk 0:03:01.6]} 3... cxd4 {[%clk 0:02:59.7]} 4.
Nxd4 {[%clk 0:03:02.5]} 4... Nf6 {[%clk 0:02:59.3]} 5. Nc3 {[%clk 0:03:02.5]}
5... e5 {[%clk 0:02:58.8]} 6. Ndb5 {[%clk 0:03:03.1]} 6... d6 {[%clk 0:02:58.9]}
7. Bg5 {[%clk 0:03:03.6]} 7... a6 {[%clk 0:02:58.9]} 8. Na3 {[%clk 0:03:04.2]}
8... b5 {[%clk 0:02:58.9]} 9. Bxf6 {[%clk 0:03:04.5]} 9... gxf6 {[%clk
0:02:58.8]} 10. Nd5 {[%clk 0:03:05.4]} 10... f5 {[%clk 0:02:57.4]} 11. g3 {[%clk
0:03:05.9]} 11... fxe4 {[%clk 0:02:54.5]} 12. Bg2 {[%clk 0:03:06.2]} 12... Bg7
{[%clk 0:02:51]} 13. Bxe4 {[%clk 0:03:05.9]} 13... Be6 {[%clk 0:02:49.9]} 14.
Qh5 {[%clk 0:03:05.3]} 14... Rc8 {[%clk 0:02:45.7]} 15. c3 {[%clk 0:03:04.6]}
15... Ne7 {[%clk 0:02:42.3]} 16. Rd1 {[%clk 0:03:04.7]} 16... Nxd5 {[%clk
0:02:28.3]} 17. Bxd5 {[%clk 0:03:05.2]} 17... O-O {[%clk 0:02:27.7]} 18. Nc2
{[%clk 0:03:04.4]} 18... Rc5 {[%clk 0:02:18.9]} 19. Ne3 {[%clk 0:03:04.1]} 19...
Bxd5 {[%clk 0:02:02.6]} 20. Nxd5 {[%clk 0:03:03.7]} 20... f5 {[%clk 0:01:59]}
21. O-O {[%clk 0:03:01.5]} 21... e4 {[%clk 0:01:55.3]} 22. Nf4 {[%clk
0:02:47.8]} 22... Qe7 {[%clk 0:01:52]} 23. Rd5 {[%clk 0:02:33]} 23... Be5 {[%clk
0:01:41.8]} 24. Rxc5 {[%clk 0:02:13.6]} 24... dxc5 {[%clk 0:01:41.8]} 25. Nd5
{[%clk 0:02:14.2]} 25... Qg7 {[%clk 0:01:35.6]} 26. Ne3 {[%clk 0:02:06.6]} 26...
Qg6 {[%clk 0:01:16.4]} 27. Qe2 {[%clk 0:02:05.1]} 27... Kh8 {[%clk 0:01:10.4]}
28. Kh1 {[%clk 0:01:38.2]} 28... c4 {[%clk 0:01:09.7]} 29. Nd5 {[%clk
0:01:23.7]} 29... Qe6 {[%clk 0:00:58.2]} 30. Rd1 {[%clk 0:01:22.7]} 30... Rd8
{[%clk 0:00:55.4]} 31. Ne3 {[%clk 0:01:21.4]} 31... Rf8 {[%clk 0:00:53.4]} 32.
Qh5 {[%clk 0:00:37.6]} 32... Qg6 {[%clk 0:00:48]} 33. Qxg6 {[%clk 0:00:28.5]}
33... hxg6 {[%clk 0:00:48]} 34. Rd7 {[%clk 0:00:29.4]} 34... f4 {[%clk
0:00:37.1]} 35. gxf4 {[%clk 0:00:28.5]} 35... Bxf4 {[%clk 0:00:36.5]} 36. Nd1
{[%clk 0:00:19.9]} 36... Bc1 {[%clk 0:00:28.5]} 37. Kg2 {[%clk 0:00:19.1]} 37...
Rf3 {[%clk 0:00:26]} 38. b3 {[%clk 0:00:09.1]} 38... Rd3 {[%clk 0:00:22.2]} 39.
Rxd3 {[%clk 0:00:09.3]} 39... exd3 {[%clk 0:00:22.6]} 40. bxc4 {[%clk
0:00:08.9]} 40... bxc4 {[%clk 0:00:23.1]} 41. Kf3 {[%clk 0:00:09.8]} 41... Kg7
{[%clk 0:00:17.7]} 42. Ke4 {[%clk 0:00:10.3]} 42... Kf6 {[%clk 0:00:17.3]} 43.
Kd5 {[%clk 0:00:10.8]} 43... Kf5 {[%clk 0:00:17.5]} 44. Kxc4 {[%clk 0:00:11.4]}
44... Ke4 {[%clk 0:00:17.8]} 45. f3+ {[%clk 0:00:04.9]} 45... Kxf3 {[%clk
0:00:17.2]} 46. Kxd3 {[%clk 0:00:05.8]} 46... Kg2 {[%clk 0:00:16.9]} 47. h4
{[%clk 0:00:05]} 47... Kh3 {[%clk 0:00:16.6]} 48. Ke4 {[%clk 0:00:04]} 48...
Kxh4 {[%clk 0:00:16.6]} 49. c4 {[%clk 0:00:04.5]} 49... Ba3 {[%clk 0:00:16.1]}
50. Ne3 {[%clk 0:00:04.9]} 50... g5 {[%clk 0:00:16.1]} 51. Kf3 {[%clk
0:00:03.3]} 51... Bc5 {[%clk 0:00:16]} 52. Nf5+ {[%clk 0:00:03.7]} 52... Kh3
{[%clk 0:00:15.9]} 53. Nh6 {[%clk 0:00:04.3]} 53... Bd4 {[%clk 0:00:15.2]} 54.
Ng4 {[%clk 0:00:04.6]} 54... Bc5 {[%clk 0:00:15.6]} 55. Nh6 {[%clk 0:00:04.9]}
55... Bd4 {[%clk 0:00:16]} 56. Ng4 {[%clk 0:00:05.2]} 56... Bc5 {[%clk
0:00:16.5]} 57. Nh6 {[%clk 0:00:05.1]} 1/2-1/2

[Event "Late-Titled-Tuesday-Blitz-July-09-2024"]
[Site "Chess.com"]
[Date "2024.07.09"]
[Round "8"]
[White "wild3000"]
[Black "Burgsvik"]
[Result "1/2-1/2"]
[WhiteElo "2435"]
[BlackElo "2272"]
[TimeControl "180+1"]
[EndTime "15:28:29 PDT"]
[Termination "Game drawn - insufficient material"]

1. a3 {[%clk 0:03:00.7]} 1... c5 {[%clk 0:03:00.9]} 2. h4 {[%clk 0:02:59.7]}
2... d5 {[%clk 0:03:00.4]} 3. h5 {[%clk 0:02:59.7]} 3... e5 {[%clk 0:03:00.1]}
4. d3 {[%clk 0:02:59.8]} 4... Nc6 {[%clk 0:02:59.4]} 5. h6 {[%clk 0:02:59.2]}
5... g6 {[%clk 0:02:56.8]} 6. e4 {[%clk 0:02:56.5]} 6... dxe4 {[%clk 0:02:54.8]}
7. dxe4 {[%clk 0:02:56]} 7... Qxd1+ {[%clk 0:02:54.6]} 8. Kxd1 {[%clk
0:02:56.9]} 8... Be6 {[%clk 0:02:53.7]} 9. Nf3 {[%clk 0:02:51]} 9... O-O-O+
{[%clk 0:02:53.1]} 10. Ke1 {[%clk 0:02:50.6]} 10... Nf6 {[%clk 0:02:52.3]} 11.
Bg5 {[%clk 0:02:48.6]} 11... Be7 {[%clk 0:02:50.7]} 12. Nc3 {[%clk 0:02:47.9]}
12... Rhe8 {[%clk 0:02:46.5]} 13. Bb5 {[%clk 0:02:46.8]} 13... Ng4 {[%clk
0:02:41.2]} 14. Bxc6 {[%clk 0:02:42.3]} 14... bxc6 {[%clk 0:02:40.4]} 15. Bxe7
{[%clk 0:02:40.5]} 15... Rxe7 {[%clk 0:02:39.6]} 16. Ng5 {[%clk 0:02:40.5]}
16... f6 {[%clk 0:02:38.3]} 17. Nxe6 {[%clk 0:02:31.9]} 17... Rxe6 {[%clk
0:02:38.1]} 18. Ke2 {[%clk 0:02:31.2]} 18... f5 {[%clk 0:02:37.3]} 19. f3 {[%clk
0:02:28.7]} 19... Nf6 {[%clk 0:02:36.8]} 20. Rad1 {[%clk 0:02:20]} 20... Rd4
{[%clk 0:02:35.6]} 21. exf5 {[%clk 0:02:10.2]} 21... gxf5 {[%clk 0:02:34.6]} 22.
b3 {[%clk 0:02:05]} 22... e4 {[%clk 0:02:29.5]} 23. fxe4 {[%clk 0:02:00.5]}
23... Nxe4 {[%clk 0:02:29.3]} 24. Nxe4 {[%clk 0:01:57.3]} 24... Rdxe4+ {[%clk
0:02:25.2]} 25. Kd2 {[%clk 0:01:53.3]} 25... Re2+ {[%clk 0:02:23.8]} 26. Kc3
{[%clk 0:01:53.4]} 26... Rxg2 {[%clk 0:02:22.5]} 27. Rdg1 {[%clk 0:01:26.1]}
27... Re3+ {[%clk 0:02:15.5]} 28. Kb2 {[%clk 0:01:22.8]} 28... Reg3 {[%clk
0:01:58.5]} 29. Rxg2 {[%clk 0:01:18.4]} 29... Rxg2 {[%clk 0:01:57.9]} 30. Rh5
{[%clk 0:01:14.7]} 30... f4 {[%clk 0:01:57.5]} 31. Rf5 {[%clk 0:01:09.8]} 31...
Rg6 {[%clk 0:01:54.8]} 32. Rf8+ {[%clk 0:01:05.4]} 32... Kc7 {[%clk 0:01:53.6]}
33. Rf7+ {[%clk 0:00:59.7]} 33... Kb6 {[%clk 0:01:53]} 34. Rxh7 {[%clk
0:00:59.9]} 34... Rf6 {[%clk 0:01:53.2]} 35. Rg7 {[%clk 0:00:48.3]} 35... Rxh6
{[%clk 0:01:52.2]} 36. Rf7 {[%clk 0:00:48.4]} 36... Rh4 {[%clk 0:01:52]} 37. a4
{[%clk 0:00:46.4]} 37... c4 {[%clk 0:01:48.2]} 38. b4 {[%clk 0:00:43.8]} 38...
a5 {[%clk 0:01:47.5]} 39. Kc3 {[%clk 0:00:39.2]} 39... axb4+ {[%clk 0:01:44.1]}
40. Kxb4 {[%clk 0:00:39.2]} 40... c5+ {[%clk 0:01:44.2]} 41. Kxc4 {[%clk
0:00:33.3]} 41... f3+ {[%clk 0:01:43.9]} 42. Kb3 {[%clk 0:00:33.4]} 42... Rh3
{[%clk 0:01:40.9]} 43. c3 {[%clk 0:00:30.4]} 43... Ka5 {[%clk 0:01:30.7]} 44.
Rf5 {[%clk 0:00:26.2]} 44... Kb6 {[%clk 0:01:30.1]} 45. Kc4 {[%clk 0:00:20.9]}
45... Rh4+ {[%clk 0:01:29.2]} 46. Kb3 {[%clk 0:00:20.9]} 46... Rh3 {[%clk
0:01:28]} 47. Rf6+ {[%clk 0:00:18.2]} 47... Ka5 {[%clk 0:01:27.2]} 48. Rf4
{[%clk 0:00:17.2]} 48... Kb6 {[%clk 0:01:26.4]} 49. Kc4 {[%clk 0:00:16.4]} 49...
Kc6 {[%clk 0:01:24]} 50. Rf6+ {[%clk 0:00:16]} 50... Kd7 {[%clk 0:01:23.9]} 51.
Kxc5 {[%clk 0:00:15.4]} 51... f2 {[%clk 0:01:24.1]} 52. Rxf2 {[%clk 0:00:15.2]}
52... Rxc3+ {[%clk 0:01:23.8]} 53. Kb6 {[%clk 0:00:14.3]} 53... Rc6+ {[%clk
0:01:22.8]} 54. Kb5 {[%clk 0:00:14.3]} 54... Re6 {[%clk 0:01:21.8]} 55. Rc2
{[%clk 0:00:13.5]} 55... Re5+ {[%clk 0:01:20.9]} 56. Kb6 {[%clk 0:00:13.1]}
56... Re6+ {[%clk 0:01:19.9]} 57. Kb7 {[%clk 0:00:13.2]} 57... Re4 {[%clk
0:01:19.7]} 58. Rd2+ {[%clk 0:00:13.2]} 58... Ke8 {[%clk 0:01:18.7]} 59. Kb6
{[%clk 0:00:12.6]} 59... Rxa4 {[%clk 0:01:17.9]} 60. Kc6 {[%clk 0:00:11.9]}
60... Ke7 {[%clk 0:01:17]} 61. Re2+ {[%clk 0:00:11.7]} 61... Kf6 {[%clk
0:01:17]} 62. Kd5 {[%clk 0:00:11.3]} 62... Ra5+ {[%clk 0:01:15.7]} 63. Kd6
{[%clk 0:00:11.4]} 63... Ra1 {[%clk 0:01:14.7]} 64. Kd5 {[%clk 0:00:11.6]} 64...
Rd1+ {[%clk 0:01:13.6]} 65. Kc4 {[%clk 0:00:11.9]} 65... Kf5 {[%clk 0:01:13.8]}
66. Kc3 {[%clk 0:00:11.4]} 66... Kf4 {[%clk 0:01:13.9]} 67. Re7 {[%clk
0:00:11.2]} 67... Rd8 {[%clk 0:01:13.7]} 68. Rc7 {[%clk 0:00:11]} 68... Ke3
{[%clk 0:01:12.9]} 69. Re7+ {[%clk 0:00:10.8]} 69... Kf4 {[%clk 0:01:12.7]} 70.
Rf7+ {[%clk 0:00:10.9]} 70... Ke5 {[%clk 0:01:12.7]} 71. Rf1 {[%clk 0:00:10.4]}
71... Rc8+ {[%clk 0:01:11.7]} 72. Kb4 {[%clk 0:00:10.4]} 72... Ra8 {[%clk
0:01:12.6]} 73. Kc4 {[%clk 0:00:10.1]} 73... Ke4 {[%clk 0:01:12.3]} 74. Re1+
{[%clk 0:00:10]} 74... Kf4 {[%clk 0:01:12.4]} 75. Rf1+ {[%clk 0:00:10.3]} 75...
Ke3 {[%clk 0:01:12.6]} 76. Rf7 {[%clk 0:00:09.9]} 76... Ra4+ {[%clk 0:01:11.6]}
77. Kd5 {[%clk 0:00:09.6]} 77... Ra5+ {[%clk 0:01:11.2]} 78. Kc4 {[%clk
0:00:09.4]} 78... Ke4 {[%clk 0:01:10.4]} 79. Re7+ {[%clk 0:00:09.4]} 79... Kf5
{[%clk 0:01:10.6]} 80. Rc7 {[%clk 0:00:09.4]} 80... Ke5 {[%clk 0:01:10.4]} 81.
Rc5+ {[%clk 0:00:09.3]} 81... Rxc5+ {[%clk 0:01:10.4]} 82. Kxc5 {[%clk
0:00:10.2]} 1/2-1/2

[Event "Late-Titled-Tuesday-Blitz-July-09-2024"]
[Site "Chess.com"]
[Date "2024.07.09"]
[Round "8"]
[White "vi_pranav"]
[Black "GMRafpig"]
[Result "1/2-1/2"]
[WhiteElo "2976"]
[BlackElo "2781"]
[TimeControl "180+1"]
[EndTime "15:28:31 PDT"]
[Termination "Game drawn by repetition"]

1. Nf3 {[%clk 0:03:00.9]} 1... Nf6 {[%clk 0:02:59.5]} 2. g3 {[%clk 0:02:58.1]}
2... g6 {[%clk 0:02:55.5]} 3. Bg2 {[%clk 0:02:58.1]} 3... Bg7 {[%clk 0:02:56.2]}
4. O-O {[%clk 0:02:58]} 4... O-O {[%clk 0:02:56.9]} 5. d3 {[%clk 0:02:57.7]}
5... d6 {[%clk 0:02:54.2]} 6. c4 {[%clk 0:02:56.6]} 6... c5 {[%clk 0:02:52.3]}
7. Nc3 {[%clk 0:02:56.3]} 7... Nc6 {[%clk 0:02:52.5]} 8. a3 {[%clk 0:02:57]}
8... a6 {[%clk 0:02:51.5]} 9. Rb1 {[%clk 0:02:53.1]} 9... Rb8 {[%clk 0:02:51.7]}
10. b4 {[%clk 0:02:51.7]} 10... cxb4 {[%clk 0:02:51.6]} 11. axb4 {[%clk
0:02:51.4]} 11... b5 {[%clk 0:02:52.3]} 12. cxb5 {[%clk 0:02:51.3]} 12... axb5
{[%clk 0:02:52]} 13. Bd2 {[%clk 0:02:52.2]} 13... Bd7 {[%clk 0:02:51.1]} 14. Qc1
{[%clk 0:02:45.2]} 14... Qb6 {[%clk 0:02:41.1]} 15. Bh6 {[%clk 0:02:43]} 15...
Rbc8 {[%clk 0:02:30.6]} 16. Qf4 {[%clk 0:02:39.4]} 16... Ne5 {[%clk 0:02:03.4]}
17. Bxg7 {[%clk 0:02:13.3]} 17... Nxf3+ {[%clk 0:02:02.4]} 18. Bxf3 {[%clk
0:02:12.8]} 18... Kxg7 {[%clk 0:02:03.3]} 19. Rfc1 {[%clk 0:02:12.1]} 19... Bc6
{[%clk 0:01:54.3]} 20. Bxc6 {[%clk 0:02:02.6]} 20... Rxc6 {[%clk 0:01:51.8]} 21.
Ne4 {[%clk 0:01:59.7]} 21... Nxe4 {[%clk 0:01:34.7]} 22. Qxe4 {[%clk 0:01:57.4]}
22... Rc7 {[%clk 0:01:35]} 23. Rxc7 {[%clk 0:01:45.3]} 23... Qxc7 {[%clk
0:01:34.8]} 24. Qd5 {[%clk 0:01:45.7]} 24... Rb8 {[%clk 0:01:32.6]} 25. h4
{[%clk 0:01:35]} 25... Qc2 {[%clk 0:01:27.2]} 26. Qd4+ {[%clk 0:01:04.7]} 26...
e5 {[%clk 0:01:25.6]} 27. Qb2 {[%clk 0:01:03.9]} 27... Qxb2 {[%clk 0:01:14.2]}
28. Rxb2 {[%clk 0:01:04.8]} 28... Ra8 {[%clk 0:01:14.7]} 29. Rc2 {[%clk
0:01:03.5]} 29... Ra4 {[%clk 0:01:12.1]} 30. Rc6 {[%clk 0:01:02.9]} 30... Rxb4
{[%clk 0:01:12.1]} 31. Rxd6 {[%clk 0:01:03]} 31... h5 {[%clk 0:01:10.3]} 32. Kg2
{[%clk 0:01:02.3]} 32... e4 {[%clk 0:00:55.1]} 33. d4 {[%clk 0:00:59.6]} 33...
Kf8 {[%clk 0:00:52.3]} 34. e3 {[%clk 0:00:57.2]} 34... Ke7 {[%clk 0:00:52.2]}
35. Rb6 {[%clk 0:00:55.5]} 35... Rb2 {[%clk 0:00:52.5]} 36. Kf1 {[%clk
0:00:48.2]} 36... Rb1+ {[%clk 0:00:51.5]} 37. Kg2 {[%clk 0:00:48.1]} 37... Rb2
{[%clk 0:00:51.8]} 38. d5 {[%clk 0:00:47]} 38... b4 {[%clk 0:00:51.1]} 39. g4
{[%clk 0:00:43.7]} 39... hxg4 {[%clk 0:00:49.9]} 40. Kg3 {[%clk 0:00:44.2]}
40... f5 {[%clk 0:00:40.5]} 41. Rxg6 {[%clk 0:00:42.6]} 41... b3 {[%clk
0:00:41]} 42. Rb6 {[%clk 0:00:42]} 42... Rb1 {[%clk 0:00:41.1]} 43. Kg2 {[%clk
0:00:40.8]} 43... b2 {[%clk 0:00:29.2]} 44. h5 {[%clk 0:00:40.6]} 44... f4
{[%clk 0:00:29.9]} 45. exf4 {[%clk 0:00:27.3]} 45... g3 {[%clk 0:00:29.5]} 46.
fxg3 {[%clk 0:00:16.2]} 46... e3 {[%clk 0:00:29.9]} 47. h6 {[%clk 0:00:11.4]}
47... e2 {[%clk 0:00:28.8]} 48. Re6+ {[%clk 0:00:12]} 48... Kf7 {[%clk
0:00:26.1]} 49. Rxe2 {[%clk 0:00:12.9]} 49... Rg1+ {[%clk 0:00:25.8]} 50. Kxg1
{[%clk 0:00:13]} 50... b1=Q+ {[%clk 0:00:26.4]} 51. Kg2 {[%clk 0:00:13.2]} 51...
Qd3 {[%clk 0:00:25.7]} 52. Re5 {[%clk 0:00:12.7]} 52... Qg6 {[%clk 0:00:19.4]}
53. Kf3 {[%clk 0:00:04.1]} 53... Qxh6 {[%clk 0:00:19.5]} 54. Kg4 {[%clk
0:00:05]} 54... Qg6+ {[%clk 0:00:18.9]} 55. Rg5 {[%clk 0:00:05.3]} 55... Qd3
{[%clk 0:00:17]} 56. Re5 {[%clk 0:00:06.2]} 56... Qg6+ {[%clk 0:00:16.9]} 57.
Rg5 {[%clk 0:00:06.6]} 57... Qd3 {[%clk 0:00:17.2]} 58. Re5 {[%clk 0:00:06]}
58... Qg6+ {[%clk 0:00:17.2]} 1/2-1/2